lending/lending_fUSD_20240111
["ID","MTS","AMOUNT","RATE_DAILY","PERIOD"]
[311220056,1704985854505,-179.629477,0.0003701,2]
[311220057,1704985854514,-800.0,0.00037037,2]
[311220058,1704985854523,-168.04,0.00037066,2]
[311220059,1704985854533,-190.55,0.00037075,2]
[311220060,1704985854542,-150.0,0.000371,2]
[311220061,1704985854551,-11331.33463739,0.00037107,8]
[311220062,1704985854562,-337.44,0.0003712,2]
[311220063,1704985854573,-7205.04186501,0.00037189,10]
[311220064,1704985854588,-1392.63966597,0.00037341,2]
[311220065,1704985854597,-220.79426589,0.00037341,2]
[311220066,1704985854607,-151.77554506,0.00037341,2]
[311220067,1704985854617,-615.27285754,0.00037341,2]
[311220068,1704985854628,-676.724794,0.000374,24]
[311220069,1704985854639,-165.23,0.0003742,2]
[311220070,1704985854648,-150.45,0.00037431,2]
[311220071,1704985854658,-150.45,0.00037431,2]
[311220072,1704985854668,-150.45,0.00037431,2]
[311220073,1704985854677,-150.45,0.00037431,2]
[311220074,1704985854687,-5492.53,0.00037441,3]
[311220075,1704985854696,-34789.43009563,0.00037441,2]
[311220076,1704985854706,-37049.20528583,0.00037441,120]
[311220077,1704985854715,-234.63295428,0.00037441,120]
[311220078,1704985854727,-428.3488519,0.00037441,2]
[311220079,1704985854737,-1018.09051807,0.00037441,2]
[311220080,1704985854747,-20273.55933752,0.00037441,2]
[311220081,1704985854757,-4312.80595345,0.00037441,2]
[311220082,1704985854766,-2500.0,0.00037441,2]
[311220083,1704985854775,-552.90125293,0.00037441,2]
[311220084,1704985854785,-26525.99645431,0.00037441,2]
[311220085,1704985854795,-2271.03492057,0.00037441,2]
[311220086,1704985854804,-229.75228341,0.00037441,2]
[311220087,1704985854813,-514.47316966,0.00037441,2]
[311220088,1704985854822,-1577.3788805,0.00037441,2]
[311220089,1704985854832,-425775.18762099,0.00037441,2]
[311220090,1704985854841,-871.2949197,0.00037441,2]
[311220091,1704985854850,-26330.63521286,0.00037441,2]
[311220092,1704985854859,-9101.70766296,0.00037441,2]
[311220093,1704985854869,-459.97785104,0.00037441,2]
[311220094,1704985854878,-378.20017143,0.00037441,2]
[311220095,1704985854888,-14534.55140957,0.00037441,2]
[311220096,1704985854898,-226.43485623,0.00037441,2]
[311220097,1704985854907,-2034.29039599,0.00037441,2]
[311220098,1704985854916,-385.73000421,0.00037441,2]
[311220099,1704985854926,-523.00005878,0.00037441,2]
[311220100,1704985854935,-500.0,0.00037441,120]
[311220101,1704985854945,-303.2912829,0.00037441,120]
[311220102,1704985854955,-989.87447982,0.00037441,2]
[311220103,1704985854964,-347.90876564,0.00037441,2]
[311220104,1704985854976,-5027.28352447,0.00037441,35]
[311220105,1704985854985,-9319.69877245,0.00037441,2]
[311220106,1704985854994,-495.72712304,0.00037441,120]
[311220107,1704985855003,-5000.0,0.00037441,2]
[311220108,1704985855012,-166.1338265,0.00037441,21]
[311220109,1704985855021,-1753.76308041,0.00037441,2]
[311220110,1704985855030,-394.51917785,0.00037441,120]
[311220111,1704985855275,-150.0,0.00037441,30]
[311220112,1704985855285,-262.90945062,0.00037441,30]
[311220113,1704985855295,-153.84,0.00037442,2]
[311220114,1704985855304,-814.13824777,0.00037443,2]
[311220115,1704985855314,-1000.0,0.00037445,15]
[311220116,1704985855324,-1906.976045,0.00037472,2]
[311220117,1704985855333,-1857.387872,0.00037472,2]
[311220118,1704985855342,-762.351343,0.00037472,2]
[311220119,1704985855352,-200.0,0.00037529,5]
[311220120,1704985855361,-282.576087,0.00037534,14]
[311220121,1704985855371,-200.0,0.00037558,5]
[311220122,1704985855380,-150.0,0.00037738,120]
[311220123,1704985855389,-229.85,0.00037777,2]
[311220124,1704985855399,-50118.02934142,0.000378,30]
[311220125,1704985855408,-293.79,0.000378,3]
[311220126,1704985855417,-293.79,0.000378,3]
[311220127,1704985855426,-293.79,0.000378,3]
[311220128,1704985855436,-293.79,0.000378,3]
[311220129,1704985855445,-293.79,0.000378,3]
[311220130,1704985855455,-293.79,0.000378,3]
[311220131,1704985855464,-293.79,0.000378,3]
[311220132,1704985855475,-293.79,0.000378,3]
[311220133,1704985855484,-293.79,0.000378,3]
[311220134,1704985855493,-293.79,0.000378,3]
[311220135,1704985855502,-293.79,0.000378,3]
[311220136,1704985855511,-293.79,0.000378,3]
[311220137,1704985855521,-293.79,0.000378,3]
[311220138,1704985855534,-293.79,0.000378,3]
[311220139,1704985855543,-293.79,0.000378,3]
[311220140,1704985855553,-293.79,0.000378,3]
[311220141,1704985855563,-293.79,0.000378,3]
[311220142,1704985855573,-293.79,0.000378,3]
[311220143,1704985855586,-293.79,0.000378,3]
[311220144,1704985855595,-293.79,0.000378,3]
[311220145,1704985855605,-2404.0,0.0003789,3]
[311220146,1704985855615,-150.45,0.0003789,2]
[311220147,1704985855624,-150.45,0.0003789,2]
[311220148,1704985855635,-150.45,0.0003789,2]
[311220149,1704985855645,-150.45,0.0003789,2]
[311220150,1704985855655,-4686.7702492,0.00037897,2]
[311220151,1704985855666,-661282.648755,0.000379,2]
[311220152,1704985855676,-1906.976045,0.00037935,2]
[311220153,1704985855687,-1857.387872,0.00037935,2]
[311220154,1704985855697,-762.351343,0.00037935,2]
[311220155,1704985855707,-7205.04186501,0.0003796,11]
[311220156,1704985855718,-150.45,0.0003799,2]
[311220157,1704985855731,-388.3072385,0.00037999,2]
[311220158,1704985855741,-500.0,0.00037999,2]
[311220159,1704985855751,-192.99681429,0.00037999,2]
[311220160,1704985855761,-35214.8,0.00038,30]
[311220161,1704985855770,-1049.67172007,0.00038,2]
[311220162,1704985855780,-27192.78636921,0.00038,4]
[311220163,1704985855790,-250.0,0.00038,120]
[311220164,1704985855799,-43721.40150085,0.00038,2]
[311220165,1704985855809,-1027.05326461,0.00038,2]
[311220166,1704985855819,-3060.04420173,0.00038,4]
[311220167,1704985855829,-4160.23,0.00038,7]
[311220168,1704985855839,-231.45648069,0.00038,2]
[311220169,1704985855849,-231.45648069,0.00038,2]
[311220170,1704985855861,-231.45648069,0.00038,2]
[311220171,1704985855882,-231.45648069,0.00038,2]
[311220172,1704985855903,-231.45648069,0.00038,2]
[311220173,1704985855912,-231.45648069,0.00038,2]
[311220174,1704985855923,-231.45648069,0.00038,2]
[311220175,1704985855933,-231.45648069,0.00038,2]
[311220176,1704985855944,-231.45648069,0.00038,2]
[311220177,1704985855954,-231.45648069,0.00038,2]
[311220178,1704985855964,-231.45648069,0.00038,2]
[311220179,1704985855977,-231.45648069,0.00038,2]
[311220180,1704985855988,-231.45648069,0.00038,2]
[311220181,1704985855997,-231.45648069,0.00038,2]
[311220182,1704985856007,-231.45648069,0.00038,2]
[311220183,1704985856017,-231.45648069,0.00038,2]
[311220184,1704985856027,-231.45648069,0.00038,2]
[311220185,1704985856036,-231.45648069,0.00038,2]
[311220186,1704985856046,-231.45648069,0.00038,2]
[311220187,1704985856056,-231.45648069,0.00038,2]
[311220188,1704985856066,-231.45648069,0.00038,2]
[311220189,1704985856076,-231.45648069,0.00038,2]
[311220190,1704985856086,-231.45648069,0.00038,2]
[311220191,1704985856097,-231.45648069,0.00038,2]
[311220192,1704985856107,-231.45648069,0.00038,2]
[311220193,1704985856117,-231.45648069,0.00038,2]
[311220194,1704985856126,-231.45648069,0.00038,2]
[311220195,1704985856136,-231.45648069,0.00038,2]
[311220196,1704985856146,-231.45648069,0.00038,2]
[311220197,1704985856155,-231.45648069,0.00038,2]
[311220198,1704985856166,-168.04,0.00038044,2]
[311220199,1704985856176,-1297.81403609,0.00038058,2]
[311220200,1704985856185,-449.1664085,0.0003806,8]
[311220201,1704985856195,-168.0,0.00038251,2]
[311220202,1704985856204,-672.70815257,0.00038313,7]
[311220203,1704985856214,-679.18470591,0.00038327,2]
[311220204,1704985856226,-22735.9795329,0.0003833,10]
[311220205,1704985856239,-190.55,0.00038352,2]
[311220206,1704985856248,-666.0,0.00038356,2]
[311220207,1704985856258,-500.0,0.00038356,2]
[311220208,1704985856268,-1106.19993593,0.00038356,30]
[311220209,1704985856277,-235.90616722,0.00038356,2]
[311220210,1704985856287,-1906.976045,0.00038398,2]
[311220211,1704985856297,-1857.387872,0.00038398,2]
[311220212,1704985856307,-762.351343,0.00038398,2]
[311220213,1704985856317,-6908.0,0.000384,2]
[311220214,1704985856326,-171.97,0.00038464,2]
[311220215,1704985856336,-153.84,0.00038482,2]
[311220216,1704985856345,-657.12887245,0.000385,2]
[311220217,1704985856355,-2624.88148919,0.000385,25]
[311220218,1704985856365,-282.576087,0.0003863,14]
[311220219,1704985856375,-297.07,0.00038651,60]
[311220220,1704985856385,-672.70815257,0.00038664,7]
[311220221,1704985856395,-171.99355398,0.00038687,7]
[311220222,1704985856405,-204.0,0.0003869,13]
[311220223,1704985856415,-3556.66272801,0.000387,30]
[311220224,1704985856424,-7205.04186501,0.00038731,12]
[311220225,1704985856434,-444.54148582,0.00038767,2]
[311220226,1704985856444,-150.45,0.0003879,2]
[311220227,1704985856453,-975.0,0.000388,16]
[311220228,1704985856463,-11539.80600855,0.000388,4]
[311220229,1704985856475,-184.87968352,0.000388,24]
[311220230,1704985856485,-1906.976045,0.0003886,2]
[311220231,1704985856494,-1857.387872,0.0003886,2]
[311220232,1704985856504,-762.351343,0.0003886,2]
[311220233,1704985856513,-789.0,0.000389,30]
[311220234,1704985856523,-4160.23,0.000389,7]
[311220235,1704985856532,-293.79,0.000389,3]
[311220236,1704985856542,-293.79,0.000389,3]
[311220237,1704985856552,-293.79,0.000389,3]
[311220238,1704985856561,-293.79,0.000389,3]
[311220239,1704985856571,-293.79,0.000389,3]
[311220240,1704985856583,-293.79,0.000389,3]
[311220241,1704985856592,-293.79,0.000389,3]
[311220242,1704985856602,-293.79,0.000389,3]
[311220243,1704985856612,-293.79,0.000389,3]
[311220244,1704985856622,-293.79,0.000389,3]
[311220245,1704985856633,-293.79,0.000389,3]
[311220246,1704985856643,-293.79,0.000389,3]
[311220247,1704985856653,-293.79,0.000389,3]
[311220248,1704985856665,-293.79,0.000389,3]
[311220249,1704985856676,-293.79,0.000389,3]
[311220250,1704985856686,-293.79,0.000389,3]
[311220251,1704985856696,-293.79,0.000389,3]
[311220252,1704985856706,-293.79,0.000389,3]
[311220253,1704985856716,-293.79,0.000389,3]
[311220254,1704985856727,-293.79,0.000389,3]
[311220255,1704985856736,-10744.37882463,0.00038948,2]
[311220256,1704985856746,-281.73212903,0.0003898,2]
[311220257,1704985856755,-4686.7702492,0.00038997,2]
[311220258,1704985856765,-1427.43973993,0.00039,2]
[311220259,1704985856775,-167782.28883337,0.00039,2]
[311220260,1704985856784,-370.16516551,0.00039,120]
[311220261,1704985856794,-44505.60197983,0.00039,7]
[311220262,1704985856803,-129188.0755,0.00039,2]
[311220263,1704985856813,-700.0,0.00039,3]
[311220264,1704985856822,-4058.539213,0.00039,40]
[311220265,1704985856832,-168.04,0.00039023,2]
[311220266,1704985856841,-30800.93586022,0.00039038,10]
[311220267,1704985856851,-368.57971155,0.00039038,3]
[311220268,1704985856861,-348.68462262,0.00039038,3]
[311220269,1704985856870,-9664.09585001,0.00039038,7]
[311220270,1704985856879,-2391.86372288,0.00039038,7]
[311220271,1704985856888,-1095.14039958,0.00039038,7]
[311220272,1704985856897,-229.85,0.00039059,2]
[311220273,1704985856916,-155.0,0.00039076,4]
[311220274,1704985856928,-246.5136,0.00039076,4]
[311220275,1704985856938,-2398.89574904,0.00039076,4]
[311220276,1704985856948,-303.43373299,0.00039076,4]
[311220277,1704985856958,-217.19371282,0.00039076,4]
[311220278,1704985856968,-697.8377058,0.00039076,4]
[311220279,1704985856981,-3030.0706955,0.00039076,4]
[311220280,1704985856990,-202.2190667,0.00039076,4]
[311220281,1704985857000,-230.88165684,0.00039076,4]
[311220282,1704985857010,-393.16851654,0.00039076,4]
[311220283,1704985857019,-158.33436037,0.00039076,4]
[311220284,1704985857029,-157.53460268,0.00039076,7]
[311220285,1704985857038,-156.01510386,0.00039076,2]
[311220286,1704985857048,-155.31360228,0.00039076,4]
[311220287,1704985857057,-415.786481,0.00039076,4]
[311220288,1704985857067,-225.63366431,0.00039076,4]
[311220289,1704985857076,-631.31649141,0.00039077,4]
[311220290,1704985857086,-282.68132749,0.00039077,4]
[311220291,1704985857095,-1324.99766923,0.00039077,4]
[311220292,1704985857105,-302.84681763,0.00039077,4]
[311220293,1704985857115,-2548.35015776,0.00039077,4]
[311220294,1704985857125,-841.04219636,0.00039077,4]
[311220295,1704985857134,-11718.93,0.000391,7]
[311220296,1704985857143,-12617.18,0.000391,7]
[311220297,1704985857153,-164.69,0.00039174,2]
[311220298,1704985857162,-165.28,0.0003926,2]
[311220299,1704985857171,-449.1664085,0.00039273,9]
[311220300,1704985857181,-337.44,0.00039384,2]
[311220301,1704985857191,-2456.61440794,0.000394,4]
[311220302,1704985857200,-4548.95757275,0.000395,4]
[311220303,1704985857209,-3229.97399746,0.000395,2]
[311220304,1704985857219,-5113.20644693,0.000395,60]
[311220305,1704985857231,-25745.56156783,0.000395,30]
[311220306,1704985857241,-7205.04186501,0.00039502,13]
[311220307,1704985857250,-153.84,0.00039522,2]
[311220308,1704985857260,-5800.0,0.00039528,2]
[311220309,1704985857269,-5800.0,0.00039536,2]
[311220310,1704985857279,-5800.0,0.00039545,2]
[311220311,1704985857289,-5800.0,0.00039553,2]
[311220312,1704985857299,-5800.0,0.00039562,2]
[311220313,1704985857308,-500.0,0.00039562,7]
[311220314,1704985857318,-672.70815257,0.00039563,7]
[311220315,1704985857328,-5800.0,0.0003957,2]
[311220316,1704985857337,-255.06116576,0.00039571,4]
[311220317,1704985857347,-4160.23,0.000396,7]
[311220318,1704985857356,-190.55,0.0003963,2]
[311220319,1704985857366,-1297.81403609,0.00039637,2]
[311220320,1704985857375,-1234.0,0.00039679,2]
[311220321,1704985857385,-1251.0,0.00039679,2]
[311220322,1704985857395,-288.88,0.00039679,2]
[311220323,1704985857404,-1930.0,0.00039679,2]
[311220324,1704985857414,-318.0,0.00039679,2]
[311220325,1704985857423,-235.0,0.00039679,2]
[311220326,1704985857434,-881.001,0.00039679,2]
[311220327,1704985857443,-11718.93,0.000397,7]
[311220328,1704985857453,-12617.18,0.000397,7]
[311220329,1704985857462,-6908.20455935,0.000397,2]
[311220330,1704985857472,-500.0,0.00039703,7]
[311220331,1704985857487,-282.576087,0.00039726,14]
[311220332,1704985857497,-3556.66272799,0.00039753,31]
[311220333,1704985857506,-981.10056637,0.000398,4]
[311220334,1704985857516,-33428.75089936,0.000398,2]
[311220335,1704985857525,-500.0,0.00039844,7]
[311220336,1704985857535,-672.70815257,0.00039867,7]
[311220337,1704985857545,-36912.50301362,0.000399,7]
[311220338,1704985857555,-293.79,0.000399,3]
[311220339,1704985857565,-293.79,0.000399,3]
[311220340,1704985857576,-293.79,0.000399,3]
[311220341,1704985857589,-293.79,0.000399,3]
[311220342,1704985857599,-293.79,0.000399,3]
[311220343,1704985857609,-293.79,0.000399,3]
[311220344,1704985857619,-293.79,0.000399,3]
[311220345,1704985857630,-293.79,0.000399,3]
[311220346,1704985857641,-293.79,0.000399,3]
[311220347,1704985857650,-293.79,0.000399,3]
[311220348,1704985857661,-293.79,0.000399,3]
[311220349,1704985857672,-293.79,0.000399,3]
[311220350,1704985857682,-293.79,0.000399,3]
[311220351,1704985857692,-293.79,0.000399,3]
[311220352,1704985857703,-293.79,0.000399,3]
[311220353,1704985857713,-293.79,0.000399,3]
[311220354,1704985857723,-293.79,0.000399,3]
[311220355,1704985857738,-293.79,0.000399,3]
[311220356,1704985857750,-293.79,0.000399,3]
[311220357,1704985857762,-293.79,0.000399,3]
[311220358,1704985857772,-679.18470591,0.00039902,2]
[311220359,1704985857782,-672.70815257,0.00039934,7]
[311220360,1704985857792,-17696.69822075,0.00039947,15]
[311220361,1704985857802,-1014.67766403,0.00039951,15]
[311220362,1704985857813,-17696.69822075,0.00039951,15]
[311220363,1704985857823,-2907.49919853,0.00039952,10]
[311220364,1704985857833,-514.81155017,0.00039952,10]
[311220365,1704985857842,-1014.67766403,0.00039953,15]
[311220366,1704985857853,-514.81155017,0.00039953,10]
[311220367,1704985857862,-200.0,0.00039953,15]
[311220368,1704985857872,-329.32629277,0.00039953,10]
[311220369,1704985857882,-17696.69822075,0.00039954,15]
[311220370,1704985857892,-200.0,0.00039955,15]
[311220371,1704985857902,-294.17802863,0.00039956,15]
[311220372,1704985857912,-1661.4281134,0.00039957,15]
[311220373,1704985857921,-15758.46076016,0.00039957,15]
[311220374,1704985857931,-1775.68591213,0.00039958,10]
[311220375,1704985857941,-1661.4281134,0.00039959,15]
[311220376,1704985857950,-1661.4281134,0.00039963,15]
[311220377,1704985857960,-30969.22188639,0.00039964,10]
[311220378,1704985857970,-294.17802863,0.00039966,15]
[311220379,1704985857982,-27577.30633036,0.00039968,10]
[311220380,1704985857992,-1775.68591213,0.00039969,10]
[311220381,1704985858001,-329.32629277,0.00039969,10]
[311220382,1704985858011,-30969.22188639,0.00039969,10]
[311220383,1704985858021,-2907.49919853,0.0003997,10]
[311220384,1704985858031,-30969.22188639,0.00039974,10]
[311220385,1704985858040,-2907.49919853,0.00039974,10]
[311220386,1704985858049,-1775.68591213,0.00039974,10]
[311220387,1704985858059,-514.81155017,0.00039975,10]
[311220388,1704985858068,-15758.46076016,0.00039976,15]
[311220389,1704985858078,-1014.67766403,0.00039978,15]
[311220390,1704985858088,-27577.30633036,0.00039978,10]
[311220391,1704985858097,-15758.46076016,0.00039979,15]
[311220392,1704985858107,-2907.49919853,0.00039979,10]
[311220393,1704985858116,-30969.22188639,0.0003998,10]
[311220394,1704985858126,-294.17802863,0.0003998,15]
[311220395,1704985858137,-329.32629277,0.00039981,10]
[311220396,1704985858147,-500.0,0.00039985,7]
[311220397,1704985858158,-1775.68591213,0.00039989,10]
[311220398,1704985858168,-27577.30633036,0.00039989,10]
[311220399,1704985858178,-27577.30633036,0.00039989,10]
[311220400,1704985858188,-329.32629277,0.00039989,10]
[311220401,1704985858199,-514.81155017,0.00039989,10]
[311220402,1704985858209,-31800.0,0.0003999,60]
[311220403,1704985858219,-2027.0,0.0003999,3]
[311220404,1704985858234,-2894.0,0.00039993,2]
[311220405,1704985858244,-2257.0,0.00039993,2]
[311220406,1704985858253,-1024.0,0.00039993,2]
[311220407,1704985858262,-4686.7702492,0.00039997,2]
[311220408,1704985858272,-158.1942,0.00039999,4]
[311220409,1704985858282,-221.42704534,0.00039999,2]
[311220410,1704985858292,-155.78596393,0.00039999,4]
[311220411,1704985858302,-238.63,0.00039999,4]
[311220412,1704985858312,-415.79808858,0.00039999,7]
[311220413,1704985858322,-150.0,0.00039999,2]
[311220414,1704985858331,-150.0,0.00039999,2]
[311220415,1704985858341,-500.0,0.00039999,4]
[311220416,1704985858351,-167.33622306,0.00039999,4]
[311220417,1704985858360,-602.79731911,0.00039999,4]
[311220418,1704985858370,-364.04147327,0.00039999,4]
[311220419,1704985858379,-491.16669647,0.00039999,4]
[311220420,1704985858389,-3137.73061496,0.0004,13]
[311220421,1704985858398,-487520.18209383,0.0004,15]
[311220422,1704985858408,-155.20936272,0.0004,3]
[311220423,1704985858417,-822.71508083,0.0004,7]
[311220424,1704985858430,-956.60549549,0.0004,2]
[311220425,1704985858440,-223.65882795,0.0004,4]
[311220426,1704985858450,-521.97011643,0.0004,2]
[311220427,1704985858460,-966.48279954,0.0004,4]
[311220428,1704985858470,-22008.0721351,0.0004,4]
[311220429,1704985858484,-155.0,0.0004,2]
[311220430,1704985858495,-46938.26402552,0.0004,4]
[311220431,1704985858506,-669.32141845,0.0004,4]
[311220432,1704985858516,-23615.83680053,0.0004,4]
[311220433,1704985858527,-44926.21365552,0.0004,2]
[311220434,1704985858538,-659.96111596,0.0004,10]
[311220435,1704985858549,-583.79777256,0.0004,30]
[311220436,1704985858560,-350.0,0.0004,120]
[311220437,1704985858570,-161.0377925,0.0004,30]
[311220438,1704985858582,-4749.95217377,0.0004,15]
[311220439,1704985858593,-3896.86094117,0.0004,2]
[311220440,1704985858603,-4075.64826899,0.0004,4]
[311220441,1704985858613,-806.09957877,0.0004,2]
[311220442,1704985858623,-12171.56841008,0.0004,2]
[311220443,1704985858634,-5828.59670936,0.0004,2]
[311220444,1704985858644,-213.0,0.0004,30]
[311220445,1704985858654,-4024.07700246,0.0004,7]
[311220446,1704985858664,-255.0,0.0004,12]
[311220447,1704985858674,-255.0,0.0004,12]
[311220448,1704985858684,-255.0,0.0004,12]
[311220449,1704985858694,-475.48246921,0.0004,10]
[311220450,1704985858704,-4273.0,0.0004,90]
[311220451,1704985858714,-255.0,0.0004,12]
[311220452,1704985858724,-400.0,0.0004,120]
[311220453,1704985858739,-6209.75120874,0.0004,2]
[311220454,1704985858749,-210.38937704,0.0004,2]
[311220455,1704985858759,-168.04,0.00040001,2]
[311220456,1704985858769,-500.0,0.00040125,7]
[311220457,1704985858778,-1392.63966595,0.00040127,2]
[311220458,1704985858789,-151.77554505,0.00040127,2]
[311220459,1704985858800,-672.70815257,0.00040158,7]
[311220460,1704985858811,-500.0,0.00040266,7]
[311220461,1704985858823,-7205.04186501,0.00040273,14]
[311220462,1704985858833,-171.99355398,0.00040291,7]
[311220463,1704985858845,-11718.93,0.000403,7]
[311220464,1704985858856,-4160.23,0.000403,7]
[311220465,1704985858867,-12617.18,0.000403,7]
[311220466,1704985858879,-200.0,0.00040301,2]
[311220467,1704985858891,-1687.95,0.00040333,14]
[311220468,1704985858902,-229.85,0.00040341,2]
[311220469,1704985858914,-397.28,0.00040349,15]
[311220470,1704985858925,-615.27285753,0.00040401,2]
[311220471,1704985858936,-500.0,0.00040407,7]
[311220472,1704985858956,-161.72330619,0.00040434,7]
[311220473,1704985858984,-23599.0,0.00040445,30]
[311220474,1704985858996,-371.0,0.00040445,30]
[311220475,1704985859007,-204.0,0.00040466,17]
[311220476,1704985859018,-4899.52684213,0.0004048,2]
[311220477,1704985859030,-2845.74773785,0.0004048,2]
[311220478,1704985859041,-8558.56983293,0.0004048,2]
[311220479,1704985859052,-449.1664085,0.00040486,9]
[311220480,1704985859062,-672.70815257,0.0004049,7]
[311220481,1704985859073,-441.51507136,0.000405,2]
[311220482,1704985859083,-38208.73688342,0.000405,2]
[311220483,1704985859093,-500.0,0.00040548,7]
[311220484,1704985859103,-153.84,0.00040562,2]
[311220485,1704985859114,-150.0,0.00040593,2]
[311220486,1704985859125,-3000.0,0.000406,26]
[311220487,1704985859135,-3000.0,0.0004061,26]
[311220488,1704985859146,-3000.0,0.0004062,26]
[311220489,1704985859157,-3000.0,0.0004063,26]
[311220490,1704985859167,-5194.508513,0.0004064,26]
[311220491,1704985859177,-500.0,0.00040689,7]
[311220492,1704985859189,-954.88599884,0.000407,2]
[311220493,1704985859208,-3894.0,0.000407,81]
[311220494,1704985859220,-165.28,0.00040733,2]
[311220495,1704985859236,-672.70815257,0.0004077,7]
[311220496,1704985859247,-3556.66272799,0.00040807,33]
[311220497,1704985859258,-282.576087,0.00040822,14]
[311220498,1704985859268,-500.0,0.0004083,7]
[311220499,1704985859278,-400.0,0.00040849,120]
[311220500,1704985859288,-23599.0,0.00040862,30]
[311220501,1704985859298,-371.0,0.00040862,30]
[311220502,1704985859308,-105559.6173755,0.000409,7]
[311220503,1704985859519,-33563.7788404,0.000409,7]
[311220504,1704985859530,-11718.93,0.000409,7]
[311220505,1704985859539,-12617.18,0.000409,7]
[311220506,1704985859549,-2001.24,0.000409,2]
[311220507,1704985859558,-311.54,0.000409,2]
[311220508,1704985859568,-150.0,0.00040969,120]
[311220509,1704985859578,-500.0,0.00040971,7]
[311220510,1704985859591,-168.04,0.0004098,2]
[311220511,1704985859601,-350.0,0.00040986,120]
[311220512,1704985859611,-168.64593695,0.00040989,7]
[311220513,1704985859623,-200.0,0.0004099,7]
[311220514,1704985859633,-200.0,0.0004099,7]
[311220515,1704985859642,-2187.0,0.0004099,3]
[311220516,1704985859652,-200.0,0.0004099,7]
[311220517,1704985859662,-200.0,0.0004099,7]
[311220518,1704985859673,-4686.7702492,0.00040997,2]
[311220519,1704985859683,-150.0,0.00040999,3]
[311220520,1704985859693,-150.0,0.00040999,3]
[311220521,1704985859703,-611204.26762671,0.00041,2]
[311220522,1704985859714,-888.61680617,0.00041,3]
[311220523,1704985859723,-60027.57527501,0.00041,4]
[311220524,1704985859737,-4160.23,0.00041,7]
[311220525,1704985859746,-1348.71024654,0.00041,30]
[311220526,1704985859756,-600.0,0.00041,42]
[311220527,1704985859766,-150.0,0.00041,30]
[311220528,1704985859776,-4000.0,0.00041,90]
[311220529,1704985859786,-175.0,0.00041,14]
[311220530,1704985859798,-293.79,0.00041,4]
[311220531,1704985859808,-293.79,0.00041,4]
[311220532,1704985859818,-293.79,0.00041,4]
[311220533,1704985859827,-293.79,0.00041,4]
[311220534,1704985859837,-293.79,0.00041,4]
[311220535,1704985859847,-293.79,0.00041,4]
[311220536,1704985859861,-293.79,0.00041,4]
[311220537,1704985859871,-293.79,0.00041,4]
[311220538,1704985859881,-293.79,0.00041,4]
[311220539,1704985859890,-293.79,0.00041,4]
[311220540,1704985859900,-293.79,0.00041,4]
[311220541,1704985859910,-293.79,0.00041,4]
[311220542,1704985859920,-293.79,0.00041,4]
[311220543,1704985859930,-293.79,0.00041,4]
[311220544,1704985859940,-293.79,0.00041,4]
[311220545,1704985859951,-293.79,0.00041,4]
[311220546,1704985859961,-293.79,0.00041,4]
[311220547,1704985859970,-293.79,0.00041,4]
[311220548,1704985859983,-293.79,0.00041,4]
[311220549,1704985859993,-293.79,0.00041,4]
[311220550,1704985860004,-361.67839147,0.00041,7]
[311220551,1704985860014,-500.0,0.00041,7]
[311220552,1704985860024,-243.37502235,0.00041,7]
[311220553,1704985860034,-150.0,0.00041013,30]
[311220554,1704985860044,-7205.04186501,0.00041045,15]
[311220555,1704985860055,-232.38,0.00041095,2]